bitfinex-derivatives/quotes_ETHF0:USTF0_20230403
["timestamp","ask_amount","ask_price","bid_price","bid_amount"]
[1680514864281,0.5773852,1810.4,1810.3,1.15148913]
[1680514864677,1.1547704,1810.8,1810.5,1.105]
[1680514864883,1.1547704,1810.8,1810.7,1.104]
[1680514871590,5.75626301,1810.9,1810.5,1.104]
[1680514871781,3.2078,1810.7,1810.5,1.104]
[1680514871995,3.25267068,1810.8,1810.4,2.97216907]
[1680514872382,3.2078,1810.7,1810.4,2.97216907]
[1680514872686,3.2078,1810.7,1810.5,0.15197381]
[1680514873278,4.36447068,1810.7,1810.5,0.15197381]
[1680514881503,3.2078,1810.7,1810.5,0.15197381]
[1680514881796,4.36447068,1810.7,1810.5,0.15197381]
[1680514881997,4.36447068,1810.7,1810.5,1.25697381]
[1680514886707,5.46747068,1810.7,1810.5,0.15197381]
[1680514886920,1.103,1810.5,1810.2,0.86816907]
[1680514887108,4.3038,1810.3,1810.1,0.86816907]
[1680514887809,5.46734255,1810.5,1810.2,0.86816907]
[1680514888499,5.46734255,1810.5,1810.1,1.97216907]
[1680514888805,5.46734255,1810.5,1810.2,0.86816907]
[1680514889197,5.46734255,1810.5,1810.2,1.86816907]
[1680514889401,5.46734255,1810.5,1810.1,1.97216907]
[1680514889795,5.46734255,1810.5,1810.2,0.86816907]
[1680514890100,1.15654255,1810.7,1810.4,1.105]
[1680514890296,1.15654255,1810.7,1810.4,1.97316907]
[1680514890496,1.15654255,1810.7,1810.5,1.11265911]
[1680514891002,4.36434255,1810.8,1810.5,1.11265911]
[1680514891196,1.15654255,1810.7,1810.5,1.11265911]
[1680514892102,4.36434255,1810.8,1810.5,1.11265911]
[1680514892302,1.15654255,1810.7,1810.5,1.11265911]
[1680514893003,1.15654255,1810.7,1810.5,0.11265911]
[1680514893203,4.36434255,1810.8,1810.5,0.11265911]
[1680514893406,4.36434255,1810.8,1810.5,1.11265911]
[1680514895003,4.36434255,1810.8,1810.5,0.11265911]
[1680514895199,4.36434255,1810.8,1810.5,1.11265911]
[1680514895399,4.36434255,1810.8,1810.5,0.11265911]
[1680514896605,1.15654255,1810.7,1810.5,0.11265911]
[1680514896918,4.36434255,1810.8,1810.5,0.11265911]
[1680514899307,1.15654255,1810.7,1810.5,0.11265911]
[1680514899802,4.36434255,1810.8,1810.5,0.11265911]
[1680514901204,2.26154255,1810.7,1810.5,0.11265911]
[1680514901407,4.3128,1810.6,1810.5,0.11265911]
[1680514901601,5.46934255,1810.6,1810.5,0.11265911]
[1680514901801,4.36434255,1810.6,1810.3,0.86816907]
[1680514902212,4.36434255,1810.6,1810.3,1.86816907]
[1680514902507,4.36434255,1810.6,1810.4,0.07252978]
[1680514902904,4.36434255,1810.6,1810.3,1.86816907]
[1680514903106,4.36434255,1810.6,1810.5,0.0738054]
[1680514903906,4.36434255,1810.6,1810.5,1.0738054]
[1680514904106,3.2078,1810.6,1810.5,1.0738054]
[1680514904808,3.2078,1810.6,1810.5,1.65298898]
[1680514905803,3.2078,1810.6,1810.5,2.52115805]
[1680514906203,3.2078,1810.6,1810.5,1.52115805]
[1680514908212,4.36434255,1810.6,1810.5,1.52115805]
[1680514908809,4.36434255,1810.6,1810.5,0.65298898]
[1680514916317,5.46034255,1810.6,1810.5,0.65298898]
[1680514917020,5.50153375,1810.6,1810.5,0.57918358]
[1680514921011,5.46034255,1810.6,1810.5,0.64828045]
[1680514922024,4.36434255,1810.6,1810.5,0.64828045]
[1680514922325,4.36434255,1810.6,1810.5,0.57918358]
[1680514927033,1.105,1810.5,1810.2,1.15583093]
[1680514927230,4.0358,1810.3,1810.1,0.86816907]
[1680514927428,5.48276581,1810.3,1810.0,0.86816907]
[1680514927732,4.07598612,1810.1,1810.0,0.86923396]
[1680514927930,4.07598612,1810.1,1809.9,1.97683093]
[1680514928644,4.07598612,1810.1,1810.0,0.86923005]
[1680514928834,3.2078,1810.1,1810.0,0.86923005]
[1680514930832,3.2078,1810.1,1809.9,1.69023005]
[1680514932140,1.98556855,1810.3,1810.0,3.07323005]
[1680514932141,0.86818612,1810.3,1810.0,3.07323005]
[1680514932347,4.07496099,1810.3,1810.2,1.096]
[1680514934030,4.07496099,1810.3,1810.0,1.97123005]
[1680514934233,4.16426212,1810.3,1810.0,1.97123005]
[1680514934935,4.16426212,1810.3,1810.0,2.97123005]
[1680514936834,4.16426212,1810.3,1810.0,1.97123005]
[1680514938336,3.29710113,1810.3,1810.0,1.97123005]
[1680514940336,0.08930113,1810.3,1810.1,1.096]
[1680514940537,0.86716099,1810.4,1810.1,1.096]
[1680514941054,4.07496099,1810.3,1810.0,0.86923005]
[1680514941242,0.86716099,1810.2,1809.9,2.53565921]
[1680514941633,4.07496099,1810.3,1809.9,2.53565921]
[1680514941839,4.07496099,1810.3,1810.0,1.0]
[1680514942036,4.07496099,1810.3,1810.1,1.105]
[1680514944036,1.15756855,1810.4,1810.2,1.096]
[1680514944037,0.86716099,1810.4,1810.2,1.096]
[1680514944243,0.86716099,1810.4,1810.3,1.102]
[1680514947245,0.86716099,1810.4,1810.1,1.97423005]
[1680514947741,0.0890921,1810.3,1810.1,1.97423005]
[1680514948053,1.0,1810.3,1810.1,1.97423005]
[1680514948243,0.86716099,1810.4,1810.1,1.97423005]
[1680514949448,0.86716099,1810.4,1810.0,0.86923005]
[1680514949449,3.2078,1810.3,1810.0,0.86923005]
[1680514949749,3.2078,1810.3,1810.1,0.86923005]
[1680514951748,2.15756855,1810.5,1810.2,1.105]
[1680514951749,0.86716099,1810.5,1810.2,1.105]
[1680514952046,0.86716099,1810.5,1810.4,1.105]
[1680514952346,4.07496099,1810.5,1810.2,1.105]
[1680514953136,0.86716099,1810.4,1810.2,1.105]
[1680514953444,4.07496099,1810.5,1810.2,1.105]
[1680514956047,4.07496099,1810.5,1810.2,1.97423005]
[1680514957045,0.86716099,1810.5,1810.2,1.97423005]
[1680514957450,4.07496099,1810.5,1810.2,1.97423005]
[1680514957841,0.86716099,1810.5,1810.2,1.97423005]
[1680514958844,4.07496099,1810.5,1810.2,1.97423005]
[1680514959153,0.86716099,1810.4,1810.2,1.97423005]
[1680514959448,4.07496099,1810.5,1810.2,1.97423005]
[1680514960250,0.86716099,1810.4,1810.2,1.97423005]
[1680514962056,0.86716099,1810.4,1810.2,0.86923005]
[1680514968860,0.86716099,1810.3,1810.1,1.96523005]
[1680514970360,0.86716099,1810.3,1810.2,0.86923005]
[1680514970951,0.86716099,1810.3,1810.2,1.96523005]
[1680514971157,0.86716099,1810.4,1810.2,1.96523005]
[1680514971369,0.86716099,1810.4,1810.3,1.86864707]
[1680514972063,0.86716099,1810.4,1810.3,2.96464707]
[1680514974061,0.86716099,1810.4,1810.3,1.96464707]
[1680514977371,0.86716099,1810.4,1810.3,0.86864707]
[1680514986173,1.15756855,1810.4,1810.3,0.86864707]
[1680514986472,1.15756855,1810.4,1810.2,0.86864707]
[1680514986681,0.86738715,1810.3,1810.2,0.86864707]
[1680514988775,0.86738715,1810.3,1810.1,2.26083093]
[1680514988975,0.57838458,1810.2,1810.1,2.26083093]
[1680514989172,0.57838458,1810.2,1810.1,3.94593415]
[1680514989368,0.57838458,1810.2,1810.1,3.94915921]
[1680514992179,0.57838458,1810.2,1810.1,3.94615921]
[1680514993674,0.57838458,1810.2,1810.1,7.15395921]
[1680514993885,0.57838458,1810.3,1810.1,7.43969189]
[1680514994184,0.57838458,1810.3,1810.2,2.15903192]
[1680514994873,0.57838458,1810.3,1810.2,2.84411145]
[1680514995079,0.57838458,1810.3,1810.2,2.83889237]
[1680514995977,0.57838458,1810.3,1810.2,2.15381284]
[1680514996177,1.44577173,1810.3,1810.2,2.83889221]
[1680514996375,1.44577173,1810.3,1810.2,2.15381284]
[1680514996681,0.57838458,1810.3,1810.2,2.83889384]
[1680514996887,1.44577173,1810.3,1810.2,2.83889384]
[1680514997087,0.57838458,1810.3,1810.2,3.66689384]
[1680514997396,1.44577173,1810.3,1810.2,3.66689384]
[1680514997686,0.57838458,1810.3,1810.2,3.66689384]
[1680514998190,1.44577173,1810.3,1810.2,3.66689384]
[1680514998391,0.57838458,1810.3,1810.2,4.49489384]
[1680515001983,0.57838458,1810.3,1810.2,3.66689384]
[1680515002284,0.57838458,1810.3,1810.2,2.66689384]
[1680515003288,0.57838458,1810.3,1810.2,3.66689384]
[1680515006098,0.57838458,1810.3,1810.2,2.66689384]
[1680515007490,0.57838458,1810.3,1810.2,1.98181284]
[1680515013400,0.57838458,1810.3,1810.2,2.98181284]
[1680515013809,0.57838458,1810.3,1810.2,3.66689355]
[1680515014005,0.57838458,1810.3,1810.2,4.23158753]
[1680515014711,1.44577173,1810.3,1810.2,4.23158753]
[1680515015002,1.44577173,1810.3,1810.2,3.23158753]
[1680515017204,1.44577173,1810.3,1810.2,4.23158753]
[1680515017805,0.86738715,1810.3,1810.2,4.23158753]
[1680515018904,0.57852213,1810.3,1810.2,4.23158753]
[1680515019111,0.57852213,1810.3,1810.2,3.07777469]
[1680515021709,0.57852213,1810.3,1810.2,2.07777469]
[1680515021923,0.57852213,1810.3,1810.2,3.07777469]
[1680515022913,0.57852213,1810.3,1810.2,2.07777469]
[1680515023205,0.86738715,1810.3,1810.0,2.27278867]
[1680515023406,0.86738715,1810.3,1810.1,0.68510992]
[1680515023407,0.57849651,1810.2,1810.1,0.68510992]
[1680515023605,0.57849651,1810.2,1810.1,1.68510992]
[1680515024007,0.57849651,1810.2,1810.1,0.68510992]
[1680515024405,0.57849651,1810.2,1810.1,1.68510992]
[1680515024604,0.57849651,1810.2,1810.1,0.68510992]
[1680515025007,0.57849651,1810.2,1810.1,1.84441091]
[1680515025212,0.57849651,1810.2,1810.1,2.84441091]
[1680515025512,0.57849651,1810.2,1810.1,1.84441091]
[1680515026619,0.86738715,1810.2,1810.1,1.15930099]
[1680515028725,0.86738715,1810.2,1810.1,2.15930099]
[1680515029620,0.86738715,1810.2,1810.1,1.15930099]
[1680515030010,1.44573427,1810.2,1810.1,2.15930099]
[1680515031119,0.57834712,1810.2,1810.1,3.66941083]
[1680515031709,1.15756855,1810.4,1810.2,1.0]
[1680515031912,1.15756855,1810.6,1810.3,6.8918543]
[1680515032115,1.15756855,1810.6,1810.5,0.828]
[1680515032711,4.65476581,1810.7,1810.5,0.828]
[1680515032921,2.15682175,1810.6,1810.5,0.828]
[1680515033121,1.15682175,1810.6,1810.5,0.828]
[1680515033327,1.15682175,1810.6,1810.4,1.77989043]
[1680515033723,1.15682175,1810.5,1810.4,1.77989043]
[1680515034019,5.18962175,1810.5,1810.4,0.08274937]
[1680515034422,5.18962175,1810.5,1810.3,0.86914106]
[1680515035023,1.98182175,1810.5,1810.4,0.86914106]
[1680515035923,1.15682175,1810.6,1810.4,1.69714106]
[1680515037120,1.15682175,1810.6,1810.4,1.97314106]
[1680515038027,1.15682175,1810.6,1810.5,0.08153487]
[1680515048143,2.26082175,1810.6,1810.4,0.57930982]
[1680515048350,6.8611994,1810.5,1810.2,0.57930982]
[1680515048547,5.7561994,1810.3,1810.1,0.57930982]
[1680515048839,1.15616521,1810.2,1810.1,0.57930982]
[1680515049042,2.15616521,1810.2,1810.1,0.57930982]
[1680515049243,5.46696521,1810.3,1810.0,1.12982655]
[1680515049642,3.2078,1810.1,1810.0,1.12982655]
[1680515050035,3.2078,1810.1,1810.0,1.99896761]
[1680515050240,3.2078,1810.1,1810.0,1.12982655]
[1680515050948,3.2078,1810.1,1810.0,0.57930982]
[1680515051142,3.2078,1810.1,1810.0,2.54345088]
[1680515051848,3.2078,1810.1,1810.0,1.96414106]
[1680515052351,3.2078,1810.1,1810.0,1.67390828]
[1680515053046,3.2078,1810.1,1809.9,1.44804934]
[1680515054337,3.2078,1810.1,1809.9,0.57890828]
[1680515056045,0.05866422,1810.0,1809.9,0.57890828]
[1680515067545,0.05866422,1810.0,1809.9,1.57890828]
[1680515069346,0.05866422,1810.0,1809.9,0.57890828]
[1680515070154,0.05866422,1810.0,1809.8,4.09495323]
[1680515070650,0.05866422,1810.0,1809.9,0.57890828]
[1680515070854,0.05866422,1810.0,1809.9,1.57890828]
[1680515071150,0.05866422,1810.0,1809.9,0.57890828]
[1680515072148,0.05866422,1810.0,1809.9,1.68290828]
[1680515073054,0.05866422,1810.0,1809.9,0.57890828]
[1680515073257,0.05866422,1810.0,1809.8,1.99495323]
[1680515073451,0.05866422,1810.0,1809.9,0.57890828]
[1680515073651,0.05866422,1810.0,1809.8,1.99495323]
[1680515074154,0.05866422,1810.0,1809.9,0.57890828]
[1680515074959,0.05866422,1810.0,1809.8,3.08995323]
[1680515075352,0.05866422,1810.0,1809.9,0.57890828]
[1680515075553,0.05866422,1810.0,1809.8,3.08995323]
[1680515075753,0.05866422,1810.0,1809.8,2.22081217]
[1680515078861,0.05866422,1810.0,1809.8,3.08995323]
[1680515079059,0.05866422,1810.0,1809.9,0.57890828]
[1680515079361,0.05866422,1810.0,1809.9,1.57890828]
[1680515079558,0.05866422,1810.0,1809.9,0.57890828]
[1680515079763,0.05866422,1810.0,1809.9,1.67690828]
[1680515079955,1.15616521,1810.4,1809.9,1.96714106]
[1680515080160,0.05842976,1810.3,1810.0,2.67827164]
[1680515080459,3.2078,1810.3,1810.0,2.67827164]
[1680515080870,3.2078,1810.3,1810.0,1.67827164]
[1680515082067,3.2078,1810.3,1810.0,0.57827164]
[1680515083064,0.05840314,1810.2,1810.0,0.57827164]
[1680515083361,0.05840314,1810.2,1809.9,1.67327164]
[1680515083862,0.05840314,1810.2,1809.9,2.5424127]
[1680515084065,0.05840314,1810.2,1809.9,1.67327164]
[1680515084271,0.05840314,1810.2,1809.9,2.5424127]
[1680515084458,0.05840314,1810.2,1809.9,1.67327164]
[1680515085059,0.05840314,1810.2,1810.0,0.57827164]
[1680515085356,3.2078,1810.1,1810.0,0.57827164]
[1680515087963,0.05840314,1810.2,1810.0,0.57827164]
[1680515088363,3.26620314,1810.2,1810.0,0.57827164]
[1680515089271,4.42236835,1810.2,1810.0,0.57827164]
[1680515089459,3.26620314,1810.2,1810.0,1.4474127]
[1680515090168,4.42236835,1810.2,1810.0,0.57827164]
[1680515090562,4.42236835,1810.2,1810.0,1.4474127]
[1680515090768,4.42236835,1810.2,1810.0,0.57827164]
[1680515091170,4.42236835,1810.2,1810.0,1.4474127]
[1680515091473,4.42236835,1810.2,1810.0,2.4474127]
[1680515091666,0.86671145,1810.1,1810.0,1.57827164]
[1680515092068,0.86671145,1810.1,1810.0,0.57827164]
[1680515092374,4.42236835,1810.2,1810.0,0.86962346]
[1680515092673,4.42236835,1810.2,1810.1,0.57975405]
[1680515093471,5.52636835,1810.2,1810.1,0.57975405]
[1680515093773,4.37020314,1810.2,1810.1,0.57975405]
[1680515095971,5.52692084,1810.2,1810.1,0.57975405]
[1680515096373,4.37020314,1810.2,1810.1,0.57975405]
[1680515096574,5.52690748,1810.2,1810.1,0.57975405]
[1680515096775,4.37020314,1810.2,1810.1,0.57975405]
[1680515096975,5.52690591,1810.2,1810.1,0.57975405]
[1680515097176,5.25090591,1810.2,1810.1,0.57975405]
[1680515097374,4.09420314,1810.2,1810.1,0.57975405]
[1680515097577,5.25089286,1810.2,1810.1,0.57975405]
[1680515097774,5.25077281,1810.2,1810.1,0.57975405]
[1680515098376,4.09420314,1810.2,1810.1,0.57975405]
[1680515098680,5.25076464,1810.2,1810.1,0.57975405]
[1680515099174,4.09420314,1810.2,1810.1,0.57975405]
[1680515100379,5.25037584,1810.2,1810.1,0.57975405]
[1680515100780,5.25037584,1810.2,1810.1,1.44937751]
[1680515100982,5.25037584,1810.2,1810.1,1.44939127]
[1680515101287,5.25037584,1810.2,1810.1,1.44939837]
[1680515101979,5.25037584,1810.2,1810.1,0.86962346]
[1680515102286,1.21457584,1810.2,1810.1,0.86962346]
[1680515102675,3.2078,1810.4,1810.1,1.69362346]
[1680515102870,3.2078,1810.4,1810.3,3.10434719]
[1680515103083,3.2078,1810.4,1810.3,2.52462346]
[1680515103686,1.44491199,1810.5,1810.3,2.52462346]
[1680515103982,1.44491199,1810.5,1810.4,1.40370365]
[1680515106190,1.44491199,1810.5,1810.4,1.4832272]
[1680515106383,3.2078,1810.6,1810.4,0.90352355]
[1680515106384,4.65271199,1810.6,1810.4,0.90352355]
[1680515107088,4.65271199,1810.6,1810.4,0.07952355]
[1680515107280,1.44491199,1810.5,1810.4,0.07952355]
[1680515107480,2.44491199,1810.5,1810.3,0.57970365]
[1680515107686,4.3128,1810.4,1810.3,0.57970365]
[1680515107984,5.3128,1810.4,1810.3,0.57970365]
[1680515108682,5.35478913,1810.4,1810.3,0.57970365]
[1680515109183,5.35478913,1810.4,1810.2,1.44932711]
[1680515109379,0.86600073,1810.3,1810.2,1.44932711]
[1680515109579,1.86600073,1810.3,1810.2,1.44932711]
[1680515109788,0.86600073,1810.3,1810.2,1.44890532]
[1680515110386,0.86600073,1810.3,1810.2,1.97462346]
[1680515110784,0.90798986,1810.4,1810.2,1.97462346]
[1680515111085,0.86600073,1810.5,1810.3,5.3128]
[1680515111279,0.86600073,1810.5,1810.4,2.97379628]
[1680515111875,0.86600073,1810.6,1810.4,2.68383189]
[1680515113488,0.86600073,1810.5,1810.4,2.68383189]
[1680515113787,0.86600073,1810.6,1810.4,2.68383189]
[1680515114177,0.86600073,1810.6,1810.5,1.0]
[1680515114594,0.86600073,1810.6,1810.5,1.57883189]
[1680515114884,0.86600073,1810.6,1810.4,2.68383189]
[1680515115086,0.86600073,1810.6,1810.4,3.23317123]
[1680515116883,0.86600073,1810.7,1810.4,3.23317123]
[1680515118888,0.86600073,1810.7,1810.4,6.44097123]
[1680515119202,0.86600073,1810.7,1810.4,3.23317123]
[1680515119594,0.86600073,1810.7,1810.4,6.44097123]
[1680515119889,0.86600073,1810.7,1810.4,3.23317123]
[1680515120089,0.86600073,1810.7,1810.4,6.44097123]
[1680515120284,0.86600073,1810.7,1810.4,3.23317123]
[1680515120990,0.86600073,1810.7,1810.4,6.44097123]
[1680515121695,0.86600073,1810.7,1810.6,1.105]
[1680515122581,4.62229591,1810.8,1810.6,1.105]
[1680515122894,4.62229591,1810.8,1810.6,1.1887232]
[1680515123286,1.41449591,1810.8,1810.6,1.1887232]
[1680515127101,1.41449591,1810.8,1810.7,1.105]
[1680515127299,0.86600073,1810.9,1810.7,1.105]
[1680515127494,4.07380073,1811.0,1810.8,1.105]
[1680515127701,4.07380073,1811.0,1810.9,1.102]
[1680515128103,3.2078,1811.0,1810.9,1.102]
[1680515128805,0.86383725,1811.0,1810.9,1.102]
[1680515129814,0.86383725,1811.1,1810.9,1.102]
[1680515131113,0.86383725,1811.2,1810.9,1.102]
[1680515131912,0.86383725,1811.2,1810.9,2.102]
[1680515132705,2.51285182,1811.3,1810.9,2.102]
[1680515133007,0.86383725,1811.3,1810.9,2.102]
[1680515133613,0.86383725,1811.3,1810.9,1.102]
[1680515133806,0.86383725,1811.3,1810.9,2.102]
[1680515134517,0.86383725,1811.2,1810.9,1.102]
[1680515134813,1.86383725,1811.3,1810.9,1.64218082]
[1680515135311,3.2078,1811.2,1810.9,1.64218082]
[1680515135816,3.2078,1811.2,1810.9,1.102]
[1680515136310,4.07163725,1811.2,1810.9,1.102]
[1680515136511,3.2078,1811.2,1810.9,1.102]
[1680515136811,4.07163725,1811.2,1810.9,1.102]
[1680515137307,3.2078,1811.0,1810.8,1.105]
[1680515137508,4.2078,1811.1,1810.8,1.105]
[1680515137711,3.2078,1811.1,1810.9,0.25210166]
[1680515137905,0.86383725,1811.2,1811.0,1.105]
[1680515138111,0.86383725,1811.4,1811.1,1.105]
[1680515138314,0.86383725,1811.4,1811.3,1.105]
[1680515141627,0.86383725,1811.4,1811.3,1.35753913]
[1680515142716,1.86383725,1811.4,1811.3,0.25253913]
[1680515142917,5.17163725,1811.5,1811.1,1.105]
[1680515143417,3.2078,1811.3,1811.1,1.105]
[1680515147322,4.07163725,1811.3,1811.1,1.105]
[1680515148324,4.07163725,1811.3,1810.9,1.102]
[1680515148635,5.17611495,1811.0,1810.4,0.57883189]
[1680515148815,1.096,1810.8,1810.4,0.57883189]
[1680515149019,4.3038,1810.8,1810.4,1.57883189]
[1680515149514,1.096,1810.8,1810.4,1.57883189]
[1680515149715,1.096,1810.8,1810.5,0.04999475]
[1680515150318,4.3038,1810.8,1810.5,0.04999475]
[1680515151518,3.2078,1810.8,1810.5,1.15199475]
[1680515151715,0.57547362,1810.9,1810.5,1.15199475]
[1680515152516,0.57547362,1810.9,1810.6,1.0]
[1680515152717,0.57547362,1810.9,1810.7,1.105]
[1680515152924,4.64658857,1811.0,1810.7,1.105]
[1680515153223,5.20157425,1811.0,1810.7,1.105]
[1680515154724,0.57547362,1810.9,1810.7,1.105]
[1680515160829,0.86331495,1811.0,1810.8,1.105]
[1680515160830,0.57547362,1811.0,1810.8,1.105]
[1680515161029,0.57547362,1811.0,1810.9,1.105]
[1680515161329,0.57547362,1811.1,1810.9,1.105]
[1680515162328,0.57547362,1811.1,1810.9,4.3128]
[1680515164830,0.57547362,1811.1,1811.0,1.0]
[1680515165031,0.57547362,1811.1,1811.0,2.105]
[1680515167825,0.57547362,1811.1,1811.0,2.29257381]
[1680515168041,1.43878857,1811.2,1811.0,2.29257381]
[1680515168226,1.43878857,1811.2,1811.1,1.105]
[1680515168627,0.86331495,1811.2,1811.1,1.105]
[1680515181157,0.86331495,1811.2,1811.1,1.09878829]
[1680515182651,0.86331495,1811.2,1811.1,1.30507943]
[1680515194769,4.07111495,1811.2,1811.1,1.30507943]
[1680515195376,0.86331495,1811.2,1811.1,1.30507943]
[1680515201075,0.86331495,1811.2,1811.1,1.88391132]
[1680515201377,1.44062499,1811.2,1811.1,1.88391132]
[1680515203077,0.86331495,1811.2,1811.1,2.17387571]
[1680515204679,0.86331495,1811.2,1811.1,2.75276575]
[1680515205682,0.86331495,1811.2,1811.1,2.17387571]
[1680515209577,0.86331495,1811.2,1811.1,1.07508742]
[1680515209791,0.86331495,1811.2,1811.1,2.17708742]
[1680515212293,0.86331495,1811.2,1811.1,1.90208742]
[1680515221194,1.44073615,1811.2,1811.1,2.8455038]
[1680515221396,0.5774212,1811.2,1811.1,3.13559569]
[1680515221698,0.5774212,1811.2,1811.1,4.82033152]
[1680515221901,0.5774212,1811.2,1811.1,4.82033578]
[1680515223001,0.5774212,1811.2,1811.1,4.13559569]
[1680515223196,0.5774212,1811.2,1811.1,4.82033778]
[1680515224605,0.5774212,1811.2,1811.1,4.82034175]
[1680515224795,0.5774212,1811.2,1811.1,4.13559569]
[1680515224999,0.5774212,1811.2,1811.1,4.82033603]
[1680515225205,0.5774212,1811.2,1811.1,4.82033692]
[1680515225902,0.5774212,1811.2,1811.1,4.13559569]
[1680515228118,1.44073615,1811.3,1811.1,4.13559569]
[1680515228300,1.44073615,1811.3,1811.2,6.72820659]
[1680515228602,1.44073615,1811.3,1811.2,6.99567663]
[1680515228806,0.5774212,1811.3,1811.2,6.99567663]
[1680515229014,1.44073615,1811.3,1811.2,6.99567663]
[1680515229709,0.86331495,1811.3,1811.2,1.96387663]
[1680515229909,1.44023966,1811.3,1811.2,1.96387663]
[1680515230111,0.86331495,1811.3,1811.2,1.6743353]
[1680515230313,0.86331495,1811.3,1811.2,2.54274189]
[1680515231010,0.86331495,1811.3,1811.2,2.54275705]
[1680515231509,0.86331495,1811.3,1811.2,1.96387663]
[1680515231816,0.86331495,1811.3,1811.2,2.54276141]
[1680515232316,0.86331495,1811.3,1811.2,1.67435482]
[1680515232610,0.86331495,1811.3,1811.2,2.54276141]
[1680515232810,0.86331495,1811.3,1811.2,2.54273924]
[1680515233415,0.86331495,1811.3,1811.2,1.96387663]
[1680515235511,1.4401774,1811.3,1811.2,5.17167663]
[1680515235717,1.44017833,1811.3,1811.2,5.17167663]
[1680515235909,0.86331495,1811.3,1811.2,5.17167663]
[1680515236307,0.86331495,1811.3,1811.2,1.96387663]
[1680515236518,1.4421101,1811.3,1811.2,5.17167663]
[1680515236906,0.86526606,1811.3,1811.2,1.96387663]
[1680515237208,1.44213836,1811.3,1811.2,1.96387663]
[1680515237409,1.44213723,1811.3,1811.2,1.96387663]
[1680515237713,1.44213723,1811.3,1811.2,1.69640659]
[1680515237908,0.86526606,1811.3,1811.2,1.69640659]
[1680515238314,1.44216334,1811.3,1811.2,4.90420659]
[1680515238712,0.57689728,1811.3,1811.2,4.90420659]
[1680515240015,1.44216334,1811.3,1811.2,4.90420659]
[1680515240220,0.57689728,1811.3,1811.2,4.90420659]
[1680515240410,1.44216334,1811.3,1811.2,4.90420659]
[1680515240812,0.57689728,1811.3,1811.2,5.19468817]
[1680515245323,0.57689728,1811.3,1811.2,4.0358]
[1680515248617,0.57689728,1811.3,1811.2,4.90422766]
[1680515248825,1.44216334,1811.3,1811.2,4.90422766]
[1680515249326,0.86526606,1811.3,1811.2,4.90422766]
[1680515256933,1.442791,1811.3,1811.2,5.19468817]
[1680515257318,0.57752494,1811.3,1811.2,5.19468817]
[1680515259929,0.57752494,1811.3,1811.2,5.87938683]
[1680515260226,0.57752494,1811.3,1811.2,5.19468817]
[1680515262735,2.15368808,1811.3,1811.2,1.4479271]
[1680515263027,2.15368808,1811.3,1811.2,0.57917084]
[1680515263028,2.24023582,1811.3,1811.2,0.57917084]
[1680515263532,1.24023582,1811.3,1811.2,1.40717084]
[1680515265128,0.08500815,1811.3,1811.2,1.69675626]
[1680515265631,4.36302767,1811.4,1811.2,1.69675626]
[1680515265934,4.07462682,1811.4,1811.3,1.69475626]
[1680515266132,4.07462682,1811.4,1811.3,0.826]
[1680515266329,4.07462682,1811.4,1811.3,1.69483106]
[1680515269728,4.36302767,1811.4,1811.3,1.69483106]
[1680515270235,3.2078,1811.4,1811.3,1.69483106]
[1680515271232,4.36302767,1811.4,1811.3,0.86883106]
[1680515274334,3.2078,1811.4,1811.3,0.86883106]
[1680515275431,4.36302767,1811.4,1811.3,0.86883106]
[1680515276141,3.2078,1811.4,1811.3,0.86883106]
[1680515277633,4.36302767,1811.4,1811.3,0.86883106]
[1680515277838,4.07443455,1811.4,1811.3,0.86883106]
[1680515278336,3.2078,1811.4,1811.3,0.86883106]
[1680515278540,4.07452242,1811.4,1811.3,0.86883106]
[1680515278742,4.07453529,1811.4,1811.3,0.86883106]
[1680515279136,3.2078,1811.4,1811.3,0.86883106]
[1680515279531,4.07464003,1811.4,1811.3,1.68983106]
[1680515279733,4.0746901,1811.4,1811.3,1.68983106]
[1680515279931,3.2078,1811.4,1811.3,1.68983106]
[1680515280132,4.0746976,1811.4,1811.3,1.68983106]
[1680515280344,3.2078,1811.4,1811.3,1.68983106]
[1680515280540,4.07470334,1811.4,1811.3,1.68983106]
[1680515281044,4.07472839,1811.4,1811.3,1.68983106]
[1680515281239,4.07472839,1811.4,1811.3,0.821]
[1680515282040,4.07472839,1811.4,1811.3,1.641]
[1680515283643,4.07472839,1811.4,1811.3,0.821]
[1680515283843,4.07472839,1811.4,1811.3,1.68982066]
[1680515284041,3.2078,1811.4,1811.3,1.68982066]
[1680515285440,5.22989469,1811.4,1811.3,1.68982066]
[1680515285742,4.36302767,1811.4,1811.3,1.68982066]
[1680515286038,3.2078,1811.4,1811.3,1.68982066]
[1680515286639,4.36302767,1811.4,1811.3,1.68982066]
[1680515286839,3.2078,1811.4,1811.3,1.68982066]
[1680515287245,4.07446513,1811.4,1811.3,1.68982066]
[1680515287449,3.2078,1811.4,1811.3,1.68982066]
[1680515287946,4.07446044,1811.4,1811.3,1.68982066]
[1680515288947,4.36302767,1811.4,1811.3,1.68982066]
[1680515289745,3.2078,1811.4,1811.3,1.68982066]
[1680515289940,4.36302767,1811.4,1811.3,1.68982066]
[1680515290140,3.2078,1811.4,1811.3,1.68982066]
[1680515290547,4.36302767,1811.4,1811.3,1.68982066]
[1680515291047,4.36302767,1811.4,1811.3,0.86882066]
[1680515292539,4.36302767,1811.4,1811.3,0.57926667]
[1680515292740,4.36302767,1811.4,1811.3,0.86882066]
[1680515293456,4.36302767,1811.4,1811.3,1.4480702]
[1680515293756,4.36302767,1811.4,1811.3,1.44807023]
[1680515293941,4.36302767,1811.4,1811.3,0.86882066]
[1680515294141,4.36302767,1811.4,1811.3,1.4480704]
[1680515294449,4.36302767,1811.4,1811.3,0.86882066]
[1680515294941,5.47691009,1811.4,1811.3,0.57924662]
[1680515295145,1.0,1811.3,1811.2,0.57924662]
[1680515295348,2.15529948,1811.3,1811.2,0.57924662]
[1680515295542,2.15529948,1811.3,1811.2,1.44806728]
[1680515295749,2.15529948,1811.3,1811.2,0.57924662]
[1680515297548,1.15529948,1811.3,1811.2,0.57924662]
[1680515297748,2.15529948,1811.3,1811.2,0.57924662]
[1680515297948,1.15529948,1811.3,1811.2,0.57924662]
[1680515298656,2.15529948,1811.3,1811.2,0.57924662]
[1680515298960,1.0,1811.3,1811.1,0.57924662]
[1680515299253,5.1897786,1811.2,1811.1,0.57924662]
[1680515300249,4.0348,1811.2,1811.1,0.57924662]
[1680515302253,4.90098082,1811.2,1811.1,0.57924662]
[1680515302641,4.08898722,1811.2,1811.1,0.57924662]
[1680515302847,4.08898722,1811.2,1811.0,1.44806728]
[1680515303048,0.86613954,1811.1,1811.0,1.44806728]
[1680515303252,0.86613954,1811.1,1811.0,1.44770177]
[1680515303449,1.44356758,1811.1,1811.0,0.86882066]
[1680515303647,0.86613954,1811.1,1811.0,1.44770301]
[1680515304452,1.44344221,1811.1,1811.0,0.57888235]